Cogmind - Beta 14 X2 @@@ ROGUE MODE // 2024.07.29 @ 11:41:34 Player: Schmee Result: Destroyed by XG-0E4(R) with Subdweller Machine Gun Performance ------------- Evolutions (0) 0 Regions Visited (3) 600 Robots Destroyed (22) 110 Value Destroyed (664) 664 Prototype IDs (0) 0 Alien Tech Used (0) 0 Bonus (0) 0 TOTAL SCORE: 1374 Bonus ------- None Cogmind --------- Core Integrity 0/250 Matter 284/300 Energy 200/200 System Corruption 1% Temperature Cool (0) Movement Rolling (110) Location -10/Subcaves Parts ------- > --- POWER (1) -------- Subdweller Power Source > --- PROPULSION (2) --- Subdweller Monowheel Subdweller Monowheel > --- UTILITY (2) ------ Scrap Shield > --- WEAPON (2) ------- Subdweller Machine Gun Grenade Launcher > --- INVENTORY (5) ---- Subdweller Monowheel Medium Storage Unit Experimental Sensor Array Tractor Beam Subdweller Laser Peak State ------------ > --- POWER ------------ Subdweller Power Source > --- PROPULSION ------- Aluminum Leg Carbon-fiber Leg > --- UTILITY ---------- Scrap Shield > --- WEAPON ----------- Subdweller Machine Gun Subdweller Machine Gun > --- INVENTORY -------- Wheel Medium Storage Unit Experimental Sensor Array Tractor Beam Grenade Launcher [Rating: 15] Favorites ----------- Power Ion Engine Engine Ion Engine Propulsion Aluminum Leg Leg Aluminum Leg Wheel Wheel Utility Targeting Computer Storage Medium Storage Unit Processor Targeting Computer Protection Scrap Shield Weapon Medium Laser Energy Gun Medium Laser Ballistic Gun Subdweller Machine Gun Ballistic Cannon Light Cannon Launcher Grenade Launcher Build | -11 -10 -10 -10 ------- Run | Yrd Mat Min Sub Slots Evolved . | . . . . Power . | . . . . Propulsion . | . . . . Utility . | . . . . Weapon . | . . . . Parts Attached 34 | . 11 8 15 Power 4 | . 1 1 2 Engine 4 | . 1 1 2 Core . | . . . . Reactor . | . . . . Propulsion 11 | . 4 2 5 Treads . | . . . . Leg 6 | . 4 1 1 Wheel 5 | . . 1 4 Hover . | . . . . Flight . | . . . . Utility 7 | . 4 1 2 Device . | . . . . Storage 4 | . 3 1 . Processor 1 | . 1 . . Hackware . | . . . . Protection 2 | . . . 2 Artifact . | . . . . Weapon 12 | . 2 4 6 Energy Gun 3 | . . 2 1 Energy Cannon . | . . . . Ballistic Gun 4 | . 1 . 3 Ballistic Cannon 1 | . 1 . . Launcher 4 | . . 2 2 Special Weapon . | . . . . Impact Weapon . | . . . . Slashing Weapon . | . . . . Piercing Weapon . | . . . . Special Melee Weapon . | . . . . Unidentified Prototypes . | . . . . Parts Lost 4 | . 1 3 . Power 2 | . 1 1 . Propulsion 1 | . . 1 . Utility . | . . . . Weapon 1 | . . 1 . Highest Loss Streak 3 | . 1 3 . To Critical Strikes . | . . . . Average Slot Usage (%) 95 | . 99 97 87 Engine 13 | . 13 12 14 Leg 19 | . 28 15 7 Wheel 8 | . . 12 20 Storage 11 | . 14 14 3 Processor 10 | . 13 14 1 Protection 3 | . . . 12 Energy Gun 7 | . 14 1 4 Ballistic Gun 9 | . 10 . 19 Ballistic Cannon 6 | . 3 14 2 Launcher 4 | . . 11 2 Naked Turns . | . . . . Heaviest Build 31 | 12 27 21 31 Greatest Support 40 | 20 20 20 40 Greatest Overweight (x) 2 | . 1 2 2 Average Overweight (x) . | . . 1 . Largest Inventory Capacity 15 | . 15 10 10 Average Capacity 8 | . 9 10 6 Most Carried 11 | . 11 10 10 Average Carried 8 | . 8 8 5 Final Capacity 10 | 8 10 10 5 Final Carried 10 | 6 10 9 5 Class Distribution -------------------- 77% | Mutant 19% | Subdweller-Mutant 3% | Scavenger-Mutant Dominant Class ---------------- Mutant | -10/Materials Mutant | -10/Mines Subdweller-Mutant | -10/Subcaves Resources | -11 -10 -10 -10 ----------- Run | Yrd Mat Min Sub Matter Collected 939 | 200 272 150 317 Remotely . | . . . . Salvage Created 694 | . 367 42 285 Parts 40 | . 14 1 25 Haulers Intercepted 1 | . 1 . . Recyclers Shooed 3 | . 3 . . Parts Field Recycled . | . . . . Retrieved Matter . | . . . . Parts Self-Destructed 9 | . . . 9 Prevented . | . . . . Kills | -11 -10 -10 -10 ------- Run | Yrd Mat Min Sub Combat Hostiles Destroyed 21 | . 7 4 10 Guns 11 | . 6 . 5 Cannons 2 | . 1 . 1 AOE 8 | . . 4 4 Classes Destroyed 7 | . 3 1 3 Hauler 1 | . 1 . . Watcher 2 | . 2 . . Swarmer 4 | . . . 4 Grunt 9 | . 7 2 . Sentry 1 | . . . 1 Subdweller 5 | . . . 5 Assembled 2 | . . 2 . Best Kill Streak 4 | . 2 2 4 Combat Bots Only 4 | . 2 2 4 Max Kills in Single Turn 3 | . 1 1 3 Gunslinging . | . . . . Exploded 3 | . . 1 3 Melee . | . . . . Uniques/NPCs Destroyed . | . . . . Combat | -11 -10 -10 -10 -------- Run | Yrd Mat Min Sub Hostile Shots Fired 114 | . 42 21 51 Missed 35 | . 12 5 18 Damage Taken 1262 | . 379 361 522 Core 261 | . 116 63 82 Absorbed by Shields . | . . . . Core Remaining (%) 100 | 100 . . . Volleys Fired 75 | . 35 10 30 Largest 2 | . 2 2 2 Hottest 90 | . 85 85 90 Shots Fired 134 | . 70 12 52 Gun 107 | . 63 2 42 Cannon 16 | . 7 2 7 Launcher 11 | . . 8 3 Special . | . . . . Kinetic 70 | . 35 2 33 Thermal 53 | . 35 2 16 Explosive 11 | . . 8 3 Electromagnetic . | . . . . Robot Hit Streak 12 | . 12 4 8 Robot Miss Streak 3 | . 3 2 2 Penetration Max . | . . . . Secondary Targets 2 | . 2 . . Max Gunslinging Chain 1 | . 1 . . Shots Hit Robots 90 | . 50 7 33 Core Hits 45 | . 19 10 16 Critical Kills . | . . . . Critical Parts Destroyed . | . . . . Critical Strikes 5 | . 5 . . Burn 3 | . 3 . . Blast 2 | . 2 . . Melee Attacks . | . . . . Impact . | . . . . Slashing . | . . . . Piercing . | . . . . Sneak Attacks . | . . . . Combat Hostiles . | . . . . Follow-up Attacks . | . . . . Damage Inflicted 2074 | . 680 490 904 Guns 1101 | . 588 12 501 Cannons 152 | . 80 . 72 Explosions 809 | . . 478 331 Melee . | . . . . Ramming 12 | . 12 . . Kinetic 722 | . 331 . 391 Thermal 531 | . 337 12 182 Explosive 809 | . . 478 331 Electromagnetic . | . . . . Impact . | . . . . Slashing . | . . . . Piercing . | . . . . Highest Corruption 1 | . . 1 1 Average Corruption 1 | . . 1 1 Corruption Purged . | . . . . Corruption Blocked . | . . . . Effects 6 | . . 3 3 Message Errors 2 | . . 1 1 Energy Discharges 1 | . . 1 . Data Loss (minor) 1 | . . 1 . Misfires 2 | . . . 2 Overload Shots . | . . . . Overflow Damage 16 | . . 12 4 Projectiles . | . . . . Explosions 16 | . . 12 4 Melee . | . . . . Knockbacks . | . . . . Impact . | . . . . Kinetic . | . . . . Secondary . | . . . . Self-Inflicted Damage 55 | . . 21 34 Shots 4 | . . 2 2 Rammed . | . . . . Targets Rammed 4 | . 4 . . Kicked 4 | . 4 . . Crushed . | . . . . Highest Temperature 279 | . 192 24 279 Average Temperature 67 | . 64 12 140 Received Heat Transfer 693 | . 228 67 398 Siege Activations . | . . . . Robots Corrupted . | . . . . Combat Hostiles . | . . . . Parts Fried . | . . . . Impact Corruptions . | . . . . Robots Melted . | . . . . Combat Hostiles . | . . . . Parts Melted 3 | . 3 . . Heat Transferred 1593 | . 1221 37 335 Parts Sabotaged . | . . . . Parts Stolen . | . . . . Parts Stripped . | . . . . Power Chain Reactions . | . . . . Alert | -11 -10 -10 -10 ------- Run | Yrd Mat Min Sub Peak Influence 243 | . 243 80 . Initial . | . . . . Average 89 | . 114 49 . Maximum Alert Level 1 | . 1 . . Low Security (%) 86 | . 78 100 . Level 1 13 | . 21 . . Level 2 . | . . . . Level 3 . | . . . . Level 4 . | . . . . Level 5 . | . . . . High Security . | . . . . Max Security . | . . . . Squads Dispatched 1 | . 1 . . Investigation . | . . . . Extermination . | . . . . Reinforcement 1 | . 1 . . Assault . | . . . . Garrison . | . . . . Intercept . | . . . . Searches Triggered . | . . . . Construction Impeded . | . . . . Haulers Reinforced . | . . . . Active Scanning Responses . | . . . . Cargo Convoy Interrupts . | . . . . Stealth | -11 -10 -10 -10 --------- Run | Yrd Mat Min Sub Distress Signals 1 | . 1 . . Communications Jammed . | . . . . Distress Signals . | . . . . Times Spotted 52 | . 12 24 16 Peak Tracking Total 17 | . 4 17 6 Tactical Retreats 2 | . . 1 1 Traps | -11 -10 -10 -10 ------- Run | Yrd Mat Min Sub Traps Triggered 1 | . . . 1 Indirectly . | . . . . Trap Hack Attempts . | . . . . Triggered . | . . . . Disarmed . | . . . . Reprogrammed . | . . . . Reused . | . . . . Traps Extracted . | . . . . Installed . | . . . . Triggered . | . . . . Machines | -11 -10 -10 -10 ---------- Run | Yrd Mat Min Sub Machines Disabled . | . . . . Max in Single Turn . | . . . . Machines Repaired . | . . . . Machines Dismantled . | . . . . Machines Sabotaged . | . . . . Overloaded Fab Kills . | . . . . Hacking | -11 -10 -10 -10 --------- Run | Yrd Mat Min Sub Machines Accessed 3 | . 3 . . Terminals 3 | . 3 . . Fabricators . | . . . . Repair Stations . | . . . . Recycling Units . | . . . . Scanalyzers . | . . . . Garrison Access . | . . . . Total Hacks 11 | . 11 . . Successful 5 | . 5 . . Failed 6 | . 6 . . Catastrophic 1 | . 1 . . Database Lockouts . | . . . . Manual 7 | . 7 . . Terminals 11 | . 11 . . Fabricators . | . . . . Repair Stations . | . . . . Recycling Units . | . . . . Scanalyzers . | . . . . Garrison Access . | . . . . Terminal Hacks 3 | . 3 . . Robot Analysis 2 | . 2 . . Branch Access Points 1 | . 1 . . Fabricator Hacks . | . . . . Repair Station Hacks . | . . . . Recycling Unit Hacks . | . . . . Scanalyzer . | . . . . Garrison Access Hacks . | . . . . Unauthorized Hacks 2 | . 2 . . Terminals 2 | . 2 . . Botnet 2 | . 2 . . Fabricators . | . . . . Repair Stations . | . . . . Recycling Units . | . . . . Scanalyzers . | . . . . Garrison Access . | . . . . Data Cores Recovered . | . . . . Used . | . . . . Hacking Detections 3 | . 3 . . Full Trace Events . | . . . . Feedback Events . | . . . . Feedback Blocked . | . . . . Robot Schematics Acquired . | . . . . Robots Built . | . . . . Authchips . | . . . . Time . | . . . . Total Robot Build Rating . | . . . . Part Schematics Acquired . | . . . . Parts Built . | . . . . Authchips . | . . . . Time . | . . . . Total Part Build Rating . | . . . . Parts Repaired . | . . . . Time . | . . . . Parts Recycled . | . . . . Recycled Matter . | . . . . Retrieved Matter . | . . . . Retrieved Components . | . . . . Parts Scanalyzed . | . . . . Part Schematics Acquired . | . . . . Parts Damaged . | . . . . Bothacking | -11 -10 -10 -10 ------------ Run | Yrd Mat Min Sub Used RIF Installer . | . . . . Robots Hacked . | . . . . Non-combat . | . . . . Combat . | . . . . Robot Hacks Applied . | . . . . Relay Couplers Released . | . . . . Fabnet Peak Effective % . | . . . . Robots Rewired . | . . . . Allies Hacked . | . . . . Hacks Repelled . | . . . . Allies | -11 -10 -10 -10 -------- Run | Yrd Mat Min Sub Total Allies 2 | . . 2 . Largest Group 2 | . . 2 2 Highest-Rated Group 45 | . . 45 45 Highest-Rated Ally 31 | . . 31 31 Total Orders . | . . . . Ally Attacks 1 | . . . 1 Total Damage 21 | . . . 21 Kills . | . . . . Allies Corrupted . | . . . . Allies Melted . | . . . . Intel | -11 -10 -10 -10 ------- Run | Yrd Mat Min Sub Robot Analysis Total 2 | . 2 . . Derelict Logs Recovered 1 | . . 1 . Drone Launches . | . . . . Drone Recoveries . | . . . . Exploration | -11 -10 -10 -10 ------------- Run | Yrd Mat Min Sub Turns Passed 1800 | . 809 532 459 Spaces Moved 1041 | 1 531 250 259 Core . | . . . . Treads . | . . . . Legs 601 | 1 531 24 45 Wheels 440 | . . 226 214 Hover . | . . . . Flight . | . . . . Fastest Speed 95 | 120 120 95 95 Average Speed 117 | 120 120 107 121 Slowest Speed 260 | 120 190 190 260 Overloaded Moves . | . . . . Propulsion Burnouts . | . . . . Robots Hopped . | . . . . Cave-ins Triggered . | . . . . Exploration Rate (%) 37 | 2 60 60 27 Regions Visited 3 Branch Regions 2 Pre-discovered Areas 1 | . . 1 . Known Exits Taken 1 | . 1 . . Unknown Exits Taken 2 | 1 . 1 . Scrap Searched . | . . . . Spaces Dug . | . . . . Terrain Destroyed 60 | . . 41 19 Melee . | . . . . Projectile . | . . . . AOE 60 | . . 41 19 Terrain Rammed . | . . . . Walls Destroyed . | . . . . Machines Disabled . | . . . . Actions | -11 -10 -10 -10 --------- Run | Yrd Mat Min Sub Total 1489 | . 633 498 358 Wait 287 | . 34 229 24 Move 1038 | . 530 249 259 Hop . | . . . . Pick Up 16 | . 9 1 6 Fast Attach 6 | . 1 1 4 Attach 4 | . 1 2 1 Detach 2 | . . . 2 Swap 24 | . 9 5 10 Drop 31 | . 10 1 20 Fire 75 | . 35 10 30 Melee . | . . . . Ram . | . . . . Kick 4 | . 4 . . Crush . | . . . . Escape Stasis . | . . . . Rewire . | . . . . Trap . | . . . . Miscellaneous 2 | . . . 2 Route ------- -11/Scrapyard -10/Materials (discovered 2 exits: [*Mat] / *Min) -10/Mines -10/Subcaves (discovered 2 exits: [*Mat] / [*Rec]) History --------- Turn | Location | Event 1 | -11/Scrapyard | Discovered new exit (range 0) 1 | -11/Scrapyard | Entered Materials 315 | -10/Materials | Build established: Mutant 334 | -10/Materials | Discovered new exit (range 8) 549 | -10/Materials | Identified exit to Mines 810 | -10/Materials | Entered Mines 821 | -10/Mines | Assembled infested the area 822 | -10/Mines | Found a damaged Exp. Sensor Array with a note attached 825 | -10/Mines | Found Prototype Device 843 | -10/Mines | Core integrity fell below 50% 888 | -10/Mines | Lost 3 parts (1p1n1w) 1066 | -10/Mines | Learned location of Zion (-7) 1325 | -10/Mines | Discovered new exit (range 4) 1342 | -10/Mines | Entered Subcaves 1342 | -10/Subcaves | Accompanied by 2 allies 1347 | -10/Subcaves | Led the pair of lost Derelicts to an unsafe place 1654 | -10/Subcaves | Ambushed by Subdwellers from Twisted Machinery 1667 | -10/Subcaves | Core integrity fell below 20% 1700 | -10/Subcaves | Discovered new exit (range 15) 1770 | -10/Subcaves | Build established: Subdweller-Mutant 1786 | -10/Subcaves | Discovered new exit (range 16) 1801 | -10/Subcaves | Destroyed by XG-0E4(R) with Subdweller Machine Gun Last Messages --------------- 01707_ S-10 Pest destroyed. 01707_ Destroyed Flight Unit. 01707_ S-10 Pest destroyed. 01709_ 5L-24Z(u) builds Twisted Machinery. 01710_ The unstable cave ceiling collapses. 01712_ Lgt. Assault Rifle fries itself beyond repair. 01712_ S-10 Pest destroyed. 01713_ Flight Unit fries itself beyond repair. 01715_ Lgt. Ion Engine fries itself beyond repair. 01734_ The unstable cave ceiling collapses. 01736_ Acquired 13 matter. 01746_ Acquired 10 matter. 01749_ Dropped Sub. Machine Gun. 01750_ Acquired 11 matter. 01774_ Destroyed Heat Sink. 01778_ Critical hit (Burn: +37). 01783_ Y-45 Defender destroyed. 01786_ Acquired 10 matter. 01786_ EXIT=FOUND 01795_ Lgt. Treads fries itself beyond repair. Map ----- +----------------------------------------------------+ | ????????????????????????????????????????<#???????? | | ???????????????????????????????????????" """?????? | | ???????????????????????????????????????" " "????? | | ??????????????????????????????????????? "????? | | ??????????????????????????????????????? ????? | | ??????????????????????????????????????? ?????? | | ???????????????????????????? ????????? ??????? | | ?????????????????????????? # ???????## #??????? | | ???????????????????????? ?# ????#### #??????? | | ??????????????????????# "" ????# #??????? | | ??????????????????????? " " ???## ??????## | | ??????????????????????## ???# #??????? # | | ??????????????????????# ??## %#???????? | | ??????????????????????# ### %= ####????? | | ??????????????????????# [ % ##???? | | ??????????????????????# " ##### | | ??????????????????????# #### "" ## # | | ??????????????????????# ##?####" ### | | ??????????????????????# #?# #????## # | | ??????????????????????# #?# ###"### #=% | | ??????????????????????# ### #?#"""" [!"" | | ????????????? "" ????## %[ #?## "" # ## ""# | | ???????????# ### ##?# "### ! | | ???????????# R #### ##?# | | ?????????????< R ####??## | | ??????????????##### # @ %## ##???# | | ????????????????????# ## ##?## | | ???????????????????# #### ### | | ???????????????????# #?## | | ??????????????????# #?### | | ??????????????????## ## #??# | | ???????????????????## #? #?## | | ????????????????????# ? ?# | | ??????????????????? #? ## # | | ?????????????????? ? ###### | | ????????????????? ? #????? | | ?????????????????# ## ? % #????? | | ?????????????????## ?# ?? ## ????? | | ??????????????????#####?# ?? #?# ???? | | ???????????????????????? ?? ??## #??? | | ????????????????????????? ??# ### ???## ###??? | | ???????????????????????????????##??# ????? #????? | | ??????????????????????????????????? ????? ????? | | ????????????????????????????????????##????? ????? | | ??????????????????????????????????????????? ?????? | | ?????????????????????????????????????????????????? | | ?????????????????????????????????????????????????? | | ?????????????????????????????????????????????????? | | ?????????????????????????????????????????????????? | | ?????????????????????????????????????????????????? | +----------------------------------------------------+ Best States ------------- Heat Dissipation 25 Energy Generation 15 Energy Capacity 250 Matter Stores 300 Matter Capacity 300 Sight Range 16 Terrain Scan Density 10 Armor Coverage 800 Evasion (%) 55 Targeting Accuracy 5 Item Schematics ----------------- None Robot Schematics ------------------ None Fabricated ------------ Nothing Alien Tech Used ----------------- None Achievements -------------- None Challenges ------------ None Game ------ Seed PortableMicrowarpEdition Manual? 0 Play Time 00:21:44 Cumulative 118.6 hours Start 2024.07.29 @ 11:23:42 End 2024.07.29 @ 11:41:34 Sessions 1 Manual Loads 0 Difficulty Rogue Special Mode None Game No. 59 Rogue 57 Adventurer 0 Explorer 2 Win Type - Total 8 Types 8/0/0/0/0/0/0/0/0 Lore% 44 Gallery% 64 Achievement% 57 Wizard Run 0 Options --------- Layout 0 ASCII 0 Keyboard 1 Movement Numpad Keybinds 0 Fullscreen 1 Font 24/Smallcaps Map View 76x50 Zoom Use 0% Tactical HUD 1 Map Filters NONE Filters NONE Steam 1 RUN: 8fc1e5c8-4212-47b1-8297-0e797f6968a7